[Event "Late-Titled-Tuesday-Blitz-June-25-2024"]
[Site "Chess.com"]
[Date "2024.06.25"]
[Round "11"]
[White "Zurability"]
[Black "Gangster-accountant01"]
[Result "1-0"]
[WhiteElo "2779"]
[BlackElo "2600"]
[TimeControl "180+1"]
[EndTime "16:08:38 PDT"]
[Termination "Zurability won by checkmate"]

1. e4 {[%clk 0:03:00.9]} 1... e5 {[%clk 0:02:59.2]} 2. Nf3 {[%clk 0:02:59.8]}
2... Nc6 {[%clk 0:02:58.5]} 3. Bc4 {[%clk 0:02:56.5]} 3... Nf6 {[%clk
0:02:57.9]} 4. d3 {[%clk 0:02:52.5]} 4... Bc5 {[%clk 0:02:56.9]} 5. c3 {[%clk
0:02:44.4]} 5... O-O {[%clk 0:02:56.3]} 6. h3 {[%clk 0:02:37.1]} 6... d5 {[%clk
0:02:55.1]} 7. exd5 {[%clk 0:02:36.4]} 7... Nxd5 {[%clk 0:02:56]} 8. O-O {[%clk
0:02:36.9]} 8... Nb6 {[%clk 0:02:53.1]} 9. Bb3 {[%clk 0:02:36.4]} 9... Bf5
{[%clk 0:02:52.4]} 10. Bc2 {[%clk 0:02:33.1]} 10... Qd7 {[%clk 0:02:46.3]} 11.
Qe2 {[%clk 0:02:20.9]} 11... Rfe8 {[%clk 0:02:42.3]} 12. Nbd2 {[%clk 0:02:19.6]}
12... Nd5 {[%clk 0:02:32.4]} 13. Ne4 {[%clk 0:02:14.9]} 13... Bb6 {[%clk
0:02:30.3]} 14. Nh4 {[%clk 0:02:02.8]} 14... Nf4 {[%clk 0:01:52.8]} 15. Qf3
{[%clk 0:01:56.5]} 15... Bxe4 {[%clk 0:01:43.6]} 16. dxe4 {[%clk 0:01:57.4]}
16... Qe7 {[%clk 0:01:38.9]} 17. Nf5 {[%clk 0:01:54.5]} 17... Qf6 {[%clk
0:01:29.1]} 18. Bxf4 {[%clk 0:01:50.3]} 18... exf4 {[%clk 0:01:30]} 19. Qxf4
{[%clk 0:01:51.2]} 19... Kh8 {[%clk 0:01:28.4]} 20. Qh4 {[%clk 0:01:39.9]} 20...
Qxh4 {[%clk 0:01:17.9]} 21. Nxh4 {[%clk 0:01:40.8]} 21... Rad8 {[%clk
0:01:18.1]} 22. Rfd1 {[%clk 0:01:39.5]} 22... Ne5 {[%clk 0:01:17.9]} 23. Kf1
{[%clk 0:01:35.1]} 23... Nc4 {[%clk 0:01:17.6]} 24. b3 {[%clk 0:01:23.6]} 24...
Nd2+ {[%clk 0:00:52.4]} 25. Ke1 {[%clk 0:00:50.3]} 25... Nxe4 {[%clk 0:00:50.9]}
26. Rxd8 {[%clk 0:00:48.8]} 26... Bxf2+ {[%clk 0:00:50.7]} 27. Ke2 {[%clk
0:00:40.9]} 27... Rxd8 {[%clk 0:00:46.6]} 28. Nf3 {[%clk 0:00:36.2]} 28... f5
{[%clk 0:00:46.6]} 29. Bxe4 {[%clk 0:00:28.5]} 29... fxe4 {[%clk 0:00:11.8]} 30.
Ng5 {[%clk 0:00:27.8]} 30... Rf8 {[%clk 0:00:11]} 31. Nxe4 {[%clk 0:00:09.4]}
31... Bb6 {[%clk 0:00:10.5]} 32. Rd1 {[%clk 0:00:09.6]} 32... Re8 {[%clk
0:00:10.6]} 33. Kf3 {[%clk 0:00:10]} 33... h6 {[%clk 0:00:10.5]} 34. Rd7 {[%clk
0:00:09.8]} 34... Rf8+ {[%clk 0:00:09.5]} 35. Kg4 {[%clk 0:00:10.2]} 35... Kh7
{[%clk 0:00:09.1]} 36. Ng3 {[%clk 0:00:07.7]} 36... Kg6 {[%clk 0:00:09.3]} 37.
Nh5 {[%clk 0:00:06.7]} 37... Rf7 {[%clk 0:00:04.5]} 38. Nf4+ {[%clk 0:00:06.6]}
38... Kf6 {[%clk 0:00:04.3]} 39. Rd2 {[%clk 0:00:05]} 39... c6 {[%clk
0:00:03.2]} 40. Re2 {[%clk 0:00:05.2]} 40... g6 {[%clk 0:00:02.1]} 41. Re6+
{[%clk 0:00:05]} 41... Kg7 {[%clk 0:00:02.8]} 42. Rxg6+ {[%clk 0:00:05.5]} 42...
Kh7 {[%clk 0:00:03.7]} 43. Re6 {[%clk 0:00:05.7]} 43... Bc7 {[%clk 0:00:03.7]}
44. Nh5 {[%clk 0:00:03.5]} 44... Bd8 {[%clk 0:00:02.1]} 45. Ng3 {[%clk
0:00:02.6]} 45... Rg7+ {[%clk 0:00:02.3]} 46. Kf3 {[%clk 0:00:03]} 46... Rf7+
{[%clk 0:00:02.8]} 47. Ke4 {[%clk 0:00:03.4]} 47... Rg7 {[%clk 0:00:03.1]} 48.
Kf3 {[%clk 0:00:03.7]} 48... Rf7+ {[%clk 0:00:03.5]} 49. Ke2 {[%clk 0:00:04.4]}
49... Rg7 {[%clk 0:00:03.9]} 50. Re3 {[%clk 0:00:05.1]} 50... Bc7 {[%clk
0:00:03]} 51. Nf5 {[%clk 0:00:04.8]} 51... Rxg2+ {[%clk 0:00:03.3]} 52. Kf3
{[%clk 0:00:05.5]} 52... Rg5 {[%clk 0:00:03.2]} 53. Re7+ {[%clk 0:00:05.8]}
53... Kg6 {[%clk 0:00:01.9]} 54. Nh4+ {[%clk 0:00:06.4]} 54... Kh5 {[%clk
0:00:02.6]} 55. Rxc7 {[%clk 0:00:05]} 55... Kxh4 {[%clk 0:00:03.3]} 56. Rxb7
{[%clk 0:00:05.7]} 56... Rg3+ {[%clk 0:00:04]} 57. Kf4 {[%clk 0:00:05.2]} 57...
Rxc3 {[%clk 0:00:04]} 58. Rxa7 {[%clk 0:00:05.5]} 58... Kxh3 {[%clk 0:00:03.3]}
59. Rh7 {[%clk 0:00:05.8]} 59... Rc2 {[%clk 0:00:02.7]} 60. Rxh6+ {[%clk
0:00:06.1]} 60... Kg2 {[%clk 0:00:03.4]} 61. Ke5 {[%clk 0:00:04.8]} 61... c5
{[%clk 0:00:02.2]} 62. Kd5 {[%clk 0:00:04.3]} 62... Kf3 {[%clk 0:00:02.9]} 63.
Rh4 {[%clk 0:00:02.8]} 63... Ke3 {[%clk 0:00:02.5]} 64. Rc4 {[%clk 0:00:03.1]}
64... Rxa2 {[%clk 0:00:02.8]} 65. Kxc5 {[%clk 0:00:03.7]} 65... Rb2 {[%clk
0:00:02.9]} 66. b4 {[%clk 0:00:03.8]} 66... Kd3 {[%clk 0:00:03.6]} 67. b5 {[%clk
0:00:04.1]} 67... Rh2 {[%clk 0:00:04.3]} 68. Rd4+ {[%clk 0:00:03.8]} 68... Kc3
{[%clk 0:00:04.5]} 69. Rc4+ {[%clk 0:00:04.5]} 69... Kb3 {[%clk 0:00:04.5]} 70.
Rg4 {[%clk 0:00:04.5]} 70... Rh5+ {[%clk 0:00:04.4]} 71. Kc6 {[%clk 0:00:04.5]}
71... Rh6+ {[%clk 0:00:05]} 72. Kb7 {[%clk 0:00:04.9]} 72... Rh7+ {[%clk
0:00:03.8]} 73. Ka6 {[%clk 0:00:05.2]} 73... Rh6+ {[%clk 0:00:03.5]} 74. b6
{[%clk 0:00:05.6]} 74... Kc3 {[%clk 0:00:04.2]} 75. Ka7 {[%clk 0:00:05.5]} 75...
Rh1 {[%clk 0:00:04.5]} 76. b7 {[%clk 0:00:05.1]} 76... Ra1+ {[%clk 0:00:05.1]}
77. Kb6 {[%clk 0:00:05.7]} 77... Rb1+ {[%clk 0:00:04.9]} 78. Kc7 {[%clk
0:00:06.2]} 78... Kd3 {[%clk 0:00:05.3]} 79. b8=Q {[%clk 0:00:06.1]} 79... Rxb8
{[%clk 0:00:06]} 80. Kxb8 {[%clk 0:00:07]} 80... Ke3 {[%clk 0:00:06.5]} 81. Kc7
{[%clk 0:00:07.5]} 81... Kf3 {[%clk 0:00:07.2]} 82. Ra4 {[%clk 0:00:08.2]} 82...
Ke3 {[%clk 0:00:07.8]} 83. Kd6 {[%clk 0:00:09.1]} 83... Kd3 {[%clk 0:00:08.5]}
84. Kc5 {[%clk 0:00:08.7]} 84... Kc3 {[%clk 0:00:09.4]} 85. Ra3+ {[%clk
0:00:09]} 85... Kb2 {[%clk 0:00:09.9]} 86. Re3 {[%clk 0:00:08.8]} 86... Kc2
{[%clk 0:00:10.8]} 87. Kd4 {[%clk 0:00:08.9]} 87... Kd2 {[%clk 0:00:11.7]} 88.
Ke4 {[%clk 0:00:09.2]} 88... Kc2 {[%clk 0:00:12.4]} 89. Rd3 {[%clk 0:00:09.9]}
89... Kb2 {[%clk 0:00:12.6]} 90. Kd4 {[%clk 0:00:10.5]} 90... Kc2 {[%clk
0:00:13.5]} 91. Kc4 {[%clk 0:00:11]} 91... Kb2 {[%clk 0:00:14.1]} 92. Rc3 {[%clk
0:00:11.5]} 92... Kb1 {[%clk 0:00:13.8]} 93. Kb3 {[%clk 0:00:11.6]} 93... Ka1
{[%clk 0:00:14.4]} 94. Rc1# {[%clk 0:00:11.8]} 1-0

[Event "Late-Titled-Tuesday-Blitz-June-25-2024"]
[Site "Chess.com"]
[Date "2024.06.25"]
[Round "11"]
[White "WilsonPalencia21"]
[Black "Chempiblinka"]
[Result "1-0"]
[WhiteElo "2621"]
[BlackElo "2430"]
[TimeControl "180+1"]
[EndTime "16:08:43 PDT"]
[Termination "WilsonPalencia21 won by resignation"]

1. d4 {[%clk 0:03:00.9]} 1... Nf6 {[%clk 0:02:58.5]} 2. c4 {[%clk 0:03:01.5]}
2... g6 {[%clk 0:02:58]} 3. Nc3 {[%clk 0:03:01.2]} 3... Bg7 {[%clk 0:02:58.5]}
4. Nf3 {[%clk 0:03:01.9]} 4... O-O {[%clk 0:02:58.3]} 5. e4 {[%clk 0:03:01.9]}
5... d6 {[%clk 0:02:59]} 6. Be2 {[%clk 0:03:02.5]} 6... Bg4 {[%clk 0:02:59.4]}
7. h3 {[%clk 0:03:01.6]} 7... Bxf3 {[%clk 0:02:58.3]} 8. Bxf3 {[%clk 0:03:02.5]}
8... Nfd7 {[%clk 0:02:58.4]} 9. Be3 {[%clk 0:03:02.1]} 9... Nc6 {[%clk 0:02:56]}
10. Qd2 {[%clk 0:03:01.5]} 10... e5 {[%clk 0:02:55.2]} 11. d5 {[%clk 0:03:01.7]}
11... Nd4 {[%clk 0:02:55.8]} 12. O-O-O {[%clk 0:02:57.2]} 12... a6 {[%clk
0:02:43.4]} 13. Kb1 {[%clk 0:02:56.9]} 13... b5 {[%clk 0:02:37.7]} 14. Be2
{[%clk 0:02:52.7]} 14... Nc5 {[%clk 0:02:30.8]} 15. b4 {[%clk 0:02:37]} 15...
Nd7 {[%clk 0:02:20.1]} 16. Bd3 {[%clk 0:02:26.6]} 16... bxc4 {[%clk 0:02:18]}
17. Bxc4 {[%clk 0:02:26.9]} 17... Qb8 {[%clk 0:02:12.5]} 18. a3 {[%clk
0:02:21.9]} 18... a5 {[%clk 0:02:12.5]} 19. b5 {[%clk 0:02:21]} 19... Nc5 {[%clk
0:02:13]} 20. Ka2 {[%clk 0:02:19]} 20... a4 {[%clk 0:02:12.5]} 21. Rb1 {[%clk
0:02:12.5]} 21... Ncb3 {[%clk 0:02:10.4]} 22. Qd3 {[%clk 0:02:10.3]} 22... f5
{[%clk 0:01:57]} 23. f3 {[%clk 0:02:08.3]} 23... Nc5 {[%clk 0:01:56.5]} 24. Qd2
{[%clk 0:02:05.4]} 24... Ncb3 {[%clk 0:01:56.5]} 25. Qd3 {[%clk 0:02:04.8]}
25... Nc5 {[%clk 0:01:33.8]} 26. Qd1 {[%clk 0:01:58.4]} 26... fxe4 {[%clk
0:01:29.5]} 27. fxe4 {[%clk 0:01:54.5]} 27... Qd8 {[%clk 0:01:29.6]} 28. Rf1
{[%clk 0:01:46.5]} 28... Qh4 {[%clk 0:01:27.1]} 29. Qg4 {[%clk 0:01:41.4]} 29...
Qxg4 {[%clk 0:01:02.5]} 30. hxg4 {[%clk 0:01:41.3]} 30... Rxf1 {[%clk
0:00:53.9]} 31. Rxf1 {[%clk 0:01:40.3]} 31... Rf8 {[%clk 0:00:54.8]} 32. Rxf8+
{[%clk 0:01:39.4]} 32... Kxf8 {[%clk 0:00:55.7]} 33. Kb2 {[%clk 0:01:26.9]}
33... Kf7 {[%clk 0:00:55.7]} 34. Kc1 {[%clk 0:01:17.6]} 34... Bf6 {[%clk
0:00:56.2]} 35. g5 {[%clk 0:01:12.1]} 35... Bd8 {[%clk 0:00:52.3]} 36. Kd2
{[%clk 0:01:10.8]} 36... Ncb3+ {[%clk 0:00:51.3]} 37. Bxb3 {[%clk 0:01:06.3]}
37... axb3 {[%clk 0:00:39.2]} 38. Kd3 {[%clk 0:01:00.3]} 38... Ke8 {[%clk
0:00:35.1]} 39. a4 {[%clk 0:00:36.2]} 39... Kd7 {[%clk 0:00:35]} 40. a5 {[%clk
0:00:34.4]} 40... Kc8 {[%clk 0:00:35.4]} 41. Bxd4 {[%clk 0:00:31]} 41... exd4
{[%clk 0:00:34.6]} 42. Nb1 {[%clk 0:00:31.2]} 42... Bxg5 {[%clk 0:00:34.3]} 43.
Kxd4 {[%clk 0:00:31.4]} 43... Bf6+ {[%clk 0:00:30.9]} 44. Kc4 {[%clk 0:00:31]}
44... b2 {[%clk 0:00:31.1]} 45. Kb3 {[%clk 0:00:31.5]} 45... Kb7 {[%clk
0:00:30.5]} 46. Kc2 {[%clk 0:00:31.4]} 46... h5 {[%clk 0:00:29.8]} 47. Nd2
{[%clk 0:00:30.2]} 47... g5 {[%clk 0:00:26.1]} 48. Nf1 {[%clk 0:00:24.9]} 48...
h4 {[%clk 0:00:24.8]} 49. Ne3 {[%clk 0:00:23.9]} 49... Bd4 {[%clk 0:00:22.7]}
50. Ng4 {[%clk 0:00:22.9]} 50... Bc3 {[%clk 0:00:20.4]} 51. Nf2 {[%clk 0:00:16]}
51... Bxa5 {[%clk 0:00:18.1]} 52. Kxb2 {[%clk 0:00:13.7]} 52... Kb6 {[%clk
0:00:18.5]} 53. Kc2 {[%clk 0:00:13.6]} 53... Kxb5 {[%clk 0:00:18.8]} 54. Kd3
{[%clk 0:00:13.1]} 54... Be1 {[%clk 0:00:19]} 55. Ng4 {[%clk 0:00:12.3]} 55...
Kc5 {[%clk 0:00:18.8]} 56. Ke3 {[%clk 0:00:12.3]} 56... Bc3 {[%clk 0:00:18]} 57.
Kf3 {[%clk 0:00:11.3]} 57... Kd4 {[%clk 0:00:17.6]} 58. Ne3 {[%clk 0:00:10.6]}
58... Bd2 {[%clk 0:00:15.2]} 59. Nf5+ {[%clk 0:00:10.3]} 59... Ke5 {[%clk
0:00:14.4]} 60. Nh6 {[%clk 0:00:09.9]} 60... Bf4 {[%clk 0:00:12.9]} 61. Ng4+
{[%clk 0:00:08.4]} 61... Kd4 {[%clk 0:00:12.8]} 62. Nf6 {[%clk 0:00:08.8]} 62...
Kc5 {[%clk 0:00:12.4]} 63. Ne8 {[%clk 0:00:07.3]} 63... c6 {[%clk 0:00:11.6]}
64. dxc6 {[%clk 0:00:04.9]} 64... Kxc6 {[%clk 0:00:12.5]} 65. Nf6 {[%clk
0:00:05.5]} 65... Kc5 {[%clk 0:00:11.8]} 66. Nd5 {[%clk 0:00:05.3]} 66... Bc1
{[%clk 0:00:10.9]} 67. Nc3 {[%clk 0:00:04.6]} 67... Bd2 {[%clk 0:00:06.8]} 68.
Nd5 {[%clk 0:00:04.4]} 68... Kd4 {[%clk 0:00:06.7]} 69. Nf6 {[%clk 0:00:04]}
69... Ke5 {[%clk 0:00:06.3]} 70. Nd5 {[%clk 0:00:03.5]} 70... Bc1 {[%clk
0:00:05.5]} 71. Nb6 {[%clk 0:00:03.8]} 71... Bd2 {[%clk 0:00:04.9]} 72. Nc4+
{[%clk 0:00:04.2]} 72... Kd4 {[%clk 0:00:05.4]} 73. Nxd2 {[%clk 0:00:04.7]}
73... Kd3 {[%clk 0:00:06.2]} 74. Nb3 {[%clk 0:00:03.9]} 74... Kc3 {[%clk
0:00:05.9]} 75. Na5 {[%clk 0:00:04.3]} 75... Kd4 {[%clk 0:00:05.4]} 76. Nc6+
{[%clk 0:00:04.7]} 76... Kc5 {[%clk 0:00:04.9]} 77. Ne7 {[%clk 0:00:05.4]} 77...
Kd4 {[%clk 0:00:05]} 78. Nd5 {[%clk 0:00:06]} 78... Ke5 {[%clk 0:00:04.7]} 79.
Ne3 {[%clk 0:00:06.3]} 79... Kd4 {[%clk 0:00:04.8]} 80. Ng4 {[%clk 0:00:06.5]}
80... Kc5 {[%clk 0:00:04.6]} 81. Ke3 {[%clk 0:00:06.8]} 81... d5 {[%clk
0:00:03.3]} 82. e5 {[%clk 0:00:06.4]} 82... Kc6 {[%clk 0:00:03.7]} 83. Kd4
{[%clk 0:00:06.7]} 83... Kd7 {[%clk 0:00:02.2]} 84. Kxd5 {[%clk 0:00:07.3]}
84... Ke7 {[%clk 0:00:02.6]} 85. Kd4 {[%clk 0:00:07.5]} 85... Ke6 {[%clk
0:00:02.8]} 86. Ke4 {[%clk 0:00:08.1]} 86... Ke7 {[%clk 0:00:03]} 87. Kf5 {[%clk
0:00:08.7]} 87... Kd7 {[%clk 0:00:03.1]} 88. Kxg5 {[%clk 0:00:08.9]} 88... Ke7
{[%clk 0:00:04]} 89. Kxh4 {[%clk 0:00:09]} 1-0